bitfinex-derivatives/quotes_SOLF0:USTF0_20241009
["timestamp","ask_amount","ask_price","bid_price","bid_amount"]
[1728456821318,3.4849,143.54,143.53,10.74]
[1728456824122,3.4847,143.55,143.53,10.74]
[1728456824421,102.3225715,143.6,143.53,14.225]
[1728456824628,10.74,143.59,143.53,14.225]
[1728456824829,3.4843,143.57,143.54,10.74]
[1728456825623,3.4843,143.57,143.54,14.2249]
[1728456826432,3.4843,143.57,143.54,10.74]
[1728456834438,3.4844,143.56,143.54,10.74]
[1728456841542,3.4844,143.56,143.53,3.485]
[1728456841734,3.4847,143.55,143.52,15.6411]
[1728456849748,3.4847,143.55,143.52,4.9011]
[1728456849943,3.4847,143.55,143.52,15.6411]
[1728456852749,3.4847,143.55,143.52,15.6411]
[1728456853545,3.4844,143.56,143.53,3.4851]
[1728456855546,3.4842,143.57,143.54,14.2249]
[1728456856450,97.49124582,143.6,143.56,10.74]
[1728456856654,97.49124582,143.6,143.57,10.74]
[1728456857150,100.97484582,143.6,143.57,10.74]
[1728456860351,3.4837,143.59,143.57,10.74]
[1728456860564,97.49124582,143.6,143.56,10.74]
[1728456861252,3.4838,143.59,143.56,10.74]
[1728456862056,3.4838,143.59,143.56,14.2244]
[1728456866056,3.4838,143.59,143.57,10.74]
[1728456866647,4.82,143.62,143.58,3.4838]
[1728456866854,4.82,143.62,143.59,10.74]
[1728456868346,3.4833,143.61,143.57,10.74]
[1728456869460,3.4833,143.61,143.58,3.4837]
[1728456870761,4.82,143.62,143.58,3.4837]
[1728456870945,3.4834,143.6,143.58,3.4837]
[1728456871150,3.4834,143.6,143.57,14.2241]
[1728456872358,3.4834,143.6,143.57,3.4841]
[1728456875160,3.4834,143.6,143.57,14.2241]
[1728456877762,10.74,143.62,143.57,10.74]
[1728456878364,3.4837,143.6,143.56,14.2242]
[1728456879265,3.4837,143.59,143.56,14.2242]
[1728456880661,10.74,143.62,143.56,10.74]
[1728456880861,3.4839,143.58,143.56,10.74]
[1728456882666,3.4837,143.59,143.56,10.74]
[1728456891167,4.94502,143.63,143.58,10.74]
[1728456891363,3.4835,143.6,143.58,10.74]
[1728456891969,3.4833,143.61,143.59,10.74]
[1728456892164,0.12502,143.63,143.6,10.74]
[1728456892361,0.12502,143.63,143.62,10.74]
[1728456900174,0.12502,143.63,143.62,14.2229]
[1728456900571,0.12502,143.63,143.62,10.74]
[1728456901679,0.12502,143.63,143.6,4.82]
[1728456901985,3.60782,143.63,143.6,19.0433]
[1728456903779,0.12502,143.63,143.62,10.74]
[1728456910999,0.12502,143.63,143.62,14.2229]
[1728456911796,0.12502,143.63,143.62,10.74]
[1728456912901,3.60772,143.63,143.62,10.74]
[1728456913903,3.4829,143.62,143.61,13.543]
[1728456916605,3.60772,143.63,143.61,13.543]
[1728456916806,3.60772,143.63,143.62,10.74]
[1728456918304,3.4829,143.62,143.61,1.3869]
[1728456918507,0.12502,143.63,143.59,10.74]
[1728456919003,3.483,143.62,143.59,10.74]
[1728456921399,3.483,143.62,143.61,10.74]
[1728456928211,3.4834,143.6,143.59,10.74]
[1728456929222,3.4833,143.61,143.59,10.74]
[1728456930416,0.12502,143.63,143.6,10.74]
[1728456930615,3.4831,143.62,143.6,10.74]
[1728456934518,3.60782,143.63,143.6,10.74]
[1728456936417,3.60782,143.63,143.6,14.2234]
[1728456936614,3.60782,143.63,143.6,10.74]
[1728456937224,3.60772,143.63,143.6,14.2234]
[1728456940321,3.60772,143.63,143.6,10.74]
[1728456948237,3.483,143.62,143.6,10.74]
[1728456952138,3.60782,143.63,143.6,10.74]
[1728456954241,3.60782,143.63,143.6,14.2234]
[1728456960141,3.60782,143.63,143.6,10.74]
[1728456960742,3.60782,143.63,143.59,14.2236]
[1728456971055,0.12502,143.63,143.59,14.2236]
[1728456971260,3.4829,143.62,143.59,14.2236]
[1728456972671,3.4829,143.62,143.59,10.74]
[1728456973666,0.12502,143.63,143.59,10.74]
[1728456973667,3.4833,143.61,143.59,10.74]
[1728456974069,3.483,143.62,143.59,10.74]
[1728456976470,3.483,143.62,143.59,14.2236]
[1728456982570,3.60782,143.63,143.61,10.74]
[1728456986572,0.12502,143.63,143.62,10.74]
[1728456987468,0.12502,143.63,143.62,14.2229]
[1728456988667,3.4819,143.67,143.62,10.74]
[1728456988862,3.4819,143.67,143.65,10.74]
[1728456991671,3.4819,143.67,143.64,14.2223]
[1728456991873,3.4821,143.66,143.64,10.74]
[1728456993975,10.74,143.68,143.64,10.74]
[1728456995478,3.4821,143.66,143.64,10.74]
[1728456998182,4.94502,143.69,143.6,10.74]
[1728456998183,3.4828,143.63,143.6,10.74]
[1728457000875,10.74,143.65,143.6,10.74]
[1728457001176,3.483,143.62,143.6,10.74]
[1728457004380,3.4828,143.63,143.6,10.74]
[1728457007384,10.74,143.65,143.6,10.74]
[1728457007584,3.483,143.62,143.6,10.74]
[1728457019182,3.4828,143.63,143.6,10.74]
[1728457020692,10.74,143.65,143.59,18.3631]
[1728457020882,3.4832,143.61,143.59,18.3631]
[1728457021083,10.74,143.62,143.59,1.3593]
[1728457021592,3.4838,143.59,143.57,0.12502]
[1728457022995,3.4839,143.58,143.57,0.12502]
[1728457025889,14.2239,143.58,143.57,0.12502]
[1728457026096,3.4847,143.55,143.53,1.4059]
[1728457026291,3.4847,143.55,143.51,35.40064999]
[1728457026292,10.74,143.54,143.51,16.84286404]
[1728457026595,10.74,143.52,143.51,16.84286404]
[1728457026796,10.74,143.52,143.51,0.12502]
[1728457027297,14.2252,143.53,143.51,0.12502]
[1728457029995,10.74,143.53,143.51,0.12502]
[1728457030204,3.4854,143.52,143.51,0.12502]
[1728457031099,10.74,143.54,143.51,0.12502]
[1728457031290,3.4852,143.53,143.51,0.12502]
[1728457033491,3.4854,143.52,143.51,0.12502]
[1728457043002,19.0454,143.52,143.51,1e-08]
[1728457043208,19.0454,143.52,143.45,0.12502]
[1728457043209,15.56,143.52,143.45,0.12502]
[1728457043408,10.74,143.49,143.45,0.12502]
[1728457043608,3.4863,143.48,143.45,3.6863269]
[1728457044010,10.74,143.49,143.45,7.1733269]
[1728457044515,4.82,143.52,143.46,14.2268]
[1728457044705,4.82,143.52,143.48,10.74]
[1728457045614,3.4857,143.51,143.48,10.74]
[1728457046712,3.4857,143.51,143.47,14.2264]
[1728457049708,10.74,143.51,143.45,3.6863269]
[1728457049903,10.74,143.51,143.45,14.4263269]
[1728457050312,3.486,143.5,143.46,10.74]
[1728457050507,3.486,143.5,143.45,7.1731269]
[1728457050716,3.486,143.5,143.46,10.74]
[1728457051114,3.4856,143.51,143.46,14.2268]
[1728457051716,3.4859,143.5,143.46,14.2268]
[1728457052108,10.74,143.5,143.45,17.9133269]
[1728457052332,3.4861,143.49,143.45,14.4263269]
[1728457058331,10.74,143.5,143.45,3.6863269]
[1728457058637,15.56,143.5,143.45,3.6863269]
[1728457059437,3.4865,143.48,143.45,3.6863269]
[1728457071449,3.4865,143.48,143.45,0.12502]
[1728457077652,3.4865,143.48,143.45,14.35202]
[1728457081654,3.4862,143.49,143.45,10.86502]
[1728457081847,3.4862,143.49,143.46,3.4868]
[1728457087155,3.4864,143.48,143.46,3.4868]
[1728457088255,3.4864,143.48,143.45,14.35192]
[1728457093656,3.4866,143.47,143.45,10.86502]
[1728457095458,10.74,143.49,143.45,0.12502]
[1728457095666,97.54629458,143.51,143.45,0.12502]
[1728457095667,3.4868,143.46,143.45,0.12502]
[1728457097564,14.2268,143.46,143.45,0.12502]
[1728457098169,3.4868,143.46,143.45,0.12502]
[1728457098364,14.2268,143.46,143.45,0.12502]
[1728457110167,1.4025,143.5,143.45,10.86502]
[1728457110373,3.4865,143.48,143.45,14.35192]
[1728457116780,3.4865,143.48,143.45,10.86502]
[1728457117277,3.4868,143.46,143.45,0.12502]
[1728457129985,10.74,143.49,143.45,0.12502]
[1728457130288,10.74,143.49,143.45,10.86502]
[1728457130893,3.4865,143.48,143.45,10.86502]
[1728457135903,3.4865,143.48,143.45,14.35202]
[1728457150911,3.4865,143.48,143.45,3.61202]
[1728457151115,3.4865,143.48,143.45,14.35202]
[1728457160115,113.10629458,143.51,143.45,0.12502]
[1728457160323,3.4868,143.46,143.45,0.12502]
[1728457161415,3.4866,143.47,143.45,0.12502]
[1728457164227,3.4868,143.46,143.45,0.12502]
[1728457165418,3.4867,143.47,143.45,0.12502]
[1728457171228,3.4868,143.46,143.45,0.12502]
[1728457178632,3.4865,143.48,143.45,10.86502]
[1728457178836,4.82,143.49,143.47,10.74]
[1728457180832,3.4863,143.48,143.47,10.74]
[1728457182434,8.3062,143.49,143.47,10.74]
[1728457189158,3.4863,143.48,143.47,10.74]
[1728457195255,1.3166,143.53,143.47,10.74]
[1728457195452,1.3166,143.53,143.51,10.74]
[1728457195453,4.82,143.53,143.51,10.74]
[1728457196356,3.4855,143.52,143.51,10.74]
[1728457197262,4.82,143.53,143.51,10.74]
[1728457197457,4.82,143.53,143.52,10.74]
[1728457198157,4.82,143.55,143.52,10.74]
[1728457198359,4.82,143.55,143.53,10.74]
[1728457198559,4.82,143.56,143.53,10.74]
[1728457199361,3.4848,143.55,143.53,10.74]
[1728457199856,4.82,143.56,143.52,10.74]
[1728457200261,15.56,143.56,143.49,4.82]
[1728457200453,10.74,143.53,143.46,7.4506]
[1728457200663,10.74,143.53,143.48,10.74]
[1728457200859,15.54,143.53,143.48,10.74]
[1728457201159,4.8,143.53,143.48,10.74]
[1728457201769,3.486,143.5,143.48,10.74]
[1728457201959,4.8,143.53,143.48,10.74]
[1728457202162,10.74,143.52,143.48,10.74]
[1728457202357,3.4861,143.49,143.48,10.74]
[1728457203162,10.74,143.52,143.46,1.3213]
[1728457203364,10.74,143.52,143.47,10.74]
[1728457203769,10.74,143.51,143.46,1.3213]
[1728457204064,12.1278,143.51,143.46,10.74]
[1728457204271,4.8,143.5,143.46,10.74]
[1728457205266,3.4864,143.48,143.46,10.74]
[1728457206363,4.8,143.5,143.45,0.12502]
[1728457206568,4.8,143.5,143.45,10.86502]
[1728457207071,3.4867,143.47,143.45,10.86502]
[1728457210076,3.4865,143.48,143.45,10.86502]
[1728457212476,3.4866,143.47,143.45,10.86502]
[1728457213879,3.4864,143.48,143.46,10.74]
[1728457215178,3.4861,143.49,143.46,10.74]
[1728457215379,3.4861,143.49,143.46,14.2267]
[1728457216081,3.4861,143.49,143.46,10.74]
[1728457216482,6.2078,143.51,143.46,10.74]
[1728457217585,3.4863,143.49,143.46,10.74]
[1728457217785,6.2078,143.51,143.46,10.74]
[1728457218687,6.2078,143.51,143.46,14.2268]
[1728457219088,6.2078,143.51,143.47,10.74]
[1728457219287,10.74,143.53,143.47,10.74]
[1728457219489,10.74,143.53,143.45,0.12502]
[1728457219490,4.8,143.52,143.49,10.74]
[1728457219886,3.4858,143.5,143.49,10.74]
[1728457220387,3.4858,143.5,143.48,10.74]
[1728457220792,15.54,143.52,143.48,10.74]
[1728457220990,15.54,143.52,143.46,10.74]
[1728457221786,15.54,143.52,143.47,10.74]
[1728457222489,3.4862,143.49,143.47,10.74]
[1728457224700,15.54,143.52,143.47,10.74]
[1728457224903,15.54,143.52,143.45,3.61202]
[1728457225195,108.29475788,143.51,143.45,0.12502]
[1728457225394,108.29475788,143.51,143.45,10.86502]
[1728457225694,3.4867,143.47,143.45,10.86502]
[1728457225898,4.8,143.49,143.45,0.12502]
[1728457226097,4.8,143.49,143.45,10.86502]
[1728457226398,3.4867,143.47,143.45,10.86502]
[1728457227598,3.4868,143.46,143.45,0.12502]
[1728457230213,8.2868,143.46,143.45,0.12502]
[1728457234398,3.4882,143.41,143.39,0.12502]
[1728457234598,15.56,143.43,143.39,0.12502]
[1728457235000,3.4883,143.4,143.39,0.12502]
[1728457235501,8.3083,143.4,143.39,0.12502]
[1728457235702,3.4889,143.38,143.35,14.2293]
[1728457236211,3.4888,143.38,143.33,3.61482]
[1728457236407,3.4888,143.38,143.35,10.74]
[1728457240112,15.56,143.4,143.35,10.74]
[1728457240312,3.4892,143.36,143.33,14.35492]
[1728457241215,10.74,143.39,143.33,14.35492]
[1728457241417,3.4891,143.37,143.33,14.35492]
[1728457242019,3.4891,143.37,143.35,10.74]
[1728457242806,3.4891,143.37,143.33,3.61492]
[1728457243012,15.56,143.4,143.33,3.61492]
[1728457243212,3.4893,143.36,143.33,0.12502]
[1728457245217,3.4893,143.36,143.33,10.86502]
[1728457246714,8.3091,143.37,143.34,10.74]
[1728457247926,8.3091,143.37,143.34,14.2297]
[1728457248818,3.4883,143.4,143.36,14.2291]
[1728457249022,4.82,143.41,143.38,10.74]
[1728457249321,8.3082,143.41,143.38,10.74]
[1728457250018,335.12502,143.45,143.39,10.74]
[1728457250221,3.4878,143.43,143.4,3.4883]
[1728457250421,4.82,143.44,143.39,10.74]
[1728457250725,3.488,143.42,143.39,14.2285]
[1728457251025,4.82,143.44,143.39,10.74]
[1728457251425,3.4879,143.42,143.39,14.2284]
[1728457252827,15.56,143.44,143.39,10.74]
[1728457253029,3.4881,143.41,143.39,10.74]
[1728457254229,15.56,143.44,143.38,12.0895]
[1728457254926,3.4884,143.4,143.38,12.0895]
[1728457257122,0.12502,143.45,143.33,1.52702]
[1728457257123,4.82,143.41,143.33,1.52702]
[1728457257424,4.82,143.41,143.34,10.74]
[1728457257425,3.4892,143.37,143.34,10.74]
[1728457258129,3.4889,143.38,143.35,10.74]
[1728457258422,10.74,143.4,143.35,10.74]
[1728457259526,3.4888,143.38,143.35,14.2293]
[1728457260327,10.74,143.4,143.35,10.74]
[1728457260627,10.74,143.38,143.33,10.86502]
[1728457261021,3.4894,143.36,143.33,10.86502]
[1728457262430,3.4894,143.36,143.33,14.35502]
[1728457263026,14.2297,143.34,143.33,0.12502]
[1728457264619,19.0497,143.34,143.33,0.12502]
[1728457264824,3.4897,143.34,143.33,0.12502]
[1728457269228,14.2297,143.34,143.33,0.12502]
[1728457271529,10.74,143.34,143.28,2.6826]
[1728457271727,10.74,143.31,143.28,1.3516]
[1728457272532,3.4911,143.29,143.27,0.12502]
[1728457275332,10.74,143.31,143.27,10.86502]
[1728457275541,3.4908,143.3,143.27,14.35642]
[1728457276036,3.4911,143.29,143.27,0.12502]
[1728457276239,10.74,143.31,143.27,0.12502]
[1728457277439,3.4909,143.3,143.27,3.61642]
[1728457277636,3.4909,143.3,143.27,0.12502]
[1728457277836,10.74,143.3,143.27,0.12502]
[1728457278048,3.4912,143.28,143.27,0.12502]
[1728457282148,4.82,143.32,143.27,0.12502]
[1728457282149,3.4909,143.3,143.27,0.12502]
[1728457282650,1.4322,143.35,143.27,10.86502]
[1728457282946,10.74,143.33,143.28,3.491]
[1728457283141,10.74,143.33,143.28,10.74]
[1728457283344,3.4902,143.33,143.29,3.4908]
[1728457283549,8.4102,143.33,143.29,4.8995]
[1728457284045,10.74,143.32,143.27,0.12502]
[1728457284345,10.74,143.31,143.27,10.86502]
[1728457284536,15.66,143.33,143.27,10.86502]
[1728457284859,15.66,143.33,143.28,10.74]
[1728457285040,3.4905,143.31,143.28,14.231]
[1728457285249,15.66,143.33,143.28,10.74]
[1728457285943,3.4904,143.32,143.29,3.4909]
[1728457288252,3.4904,143.32,143.28,3.4911]
[1728457288647,3.4905,143.31,143.28,3.4911]
[1728457288847,15.66,143.33,143.27,0.12502]
[1728457289045,10.74,143.31,143.27,0.12502]
[1728457289447,3.491,143.29,143.27,0.12502]
[1728457293453,3.4912,143.28,143.27,0.12502]
[1728457293643,14.2312,143.28,143.27,0.12502]
[1728457295051,3.4912,143.28,143.27,0.12502]
[1728457296952,3.4919,143.25,143.22,3.4924]
[1728457297160,3.4919,143.25,143.22,14.2324]
[1728457298256,3.4919,143.25,143.22,3.4924]
[1728457298455,3.4919,143.25,143.22,14.2324]
[1728457302160,3.4918,143.26,143.22,14.2324]
[1728457302362,3.4918,143.26,143.23,3.4922]
[1728457303363,8.4116,143.27,143.23,3.4922]
[1728457303665,10.74,143.26,143.22,3.4925]
[1728457304064,3.4918,143.26,143.23,10.74]
[1728457304363,3.4918,143.26,143.23,3.4923]
[1728457304554,3.4918,143.26,143.23,14.2323]
[1728457304953,3.4916,143.27,143.23,10.74]
[1728457305258,10.74,143.26,143.22,3.4926]
[1728457306266,3.4926,143.23,143.21,0.12502]
[1728457306457,10.74,143.26,143.21,0.12502]
[1728457306658,10.74,143.25,143.21,0.12502]
[1728457306957,3.4922,143.24,143.21,0.12502]
[1728457307162,10.74,143.25,143.21,0.12502]
[1728457307370,3.4927,143.22,143.21,0.12502]
[1728457308264,14.2327,143.22,143.21,0.12502]
[1728457309970,4.92,143.25,143.21,0.12502]
[1728457310266,15.66,143.25,143.21,0.12502]
[1728457311367,3.4924,143.24,143.21,0.12502]
[1728457311569,15.66,143.25,143.21,0.12502]
[1728457312069,3.4922,143.24,143.21,0.12502]
[1728457312968,3.4924,143.23,143.21,0.12502]
[1728457315266,3.4923,143.24,143.21,3.61792]
[1728457315470,15.7,143.25,143.21,0.12502]
[1728457315667,15.7,143.25,143.21,10.86502]
[1728457317269,4.96,143.25,143.22,10.74]
[1728457317869,3.4919,143.25,143.22,14.2324]
[1728457319478,15.7,143.27,143.22,12.1529]
[1728457319774,15.7,143.27,143.22,1.4129]
[1728457320073,10.74,143.26,143.22,1.4129]
[1728457321167,3.4921,143.25,143.22,4.9055]
[1728457321376,10.74,143.26,143.22,1.4129]
[1728457321579,14.2319,143.26,143.22,15.6453]
[1728457322183,15.7,143.27,143.22,12.1529]
[1728457323076,15.7,143.27,143.23,3.4923]
[1728457323685,19.1915,143.27,143.23,3.4923]
[1728457324272,1.4109,143.29,143.23,3.4923]
[1728457324273,3.4913,143.28,143.24,3.4919]
[1728457324580,15.7,143.3,143.24,10.74]
[1728457324880,3.4912,143.28,143.25,3.4919]
[1728457325866,1.3225,143.32,143.29,3.4908]
[1728457325867,3.4903,143.32,143.29,3.4908]
[1728457326071,3.4903,143.32,143.29,10.74]
[1728457326472,3.4903,143.32,143.28,14.2311]
[1728457327077,0.12502,143.33,143.28,10.74]
[1728457327672,3.4907,143.31,143.27,14.2313]
[1728457328276,10.86502,143.33,143.27,14.2313]
[1728457328474,3.4908,143.3,143.27,10.74]
[1728457329980,3.4908,143.3,143.26,8.4516]
[1728457330281,10.74,143.32,143.27,10.74]
[1728457330781,10.74,143.3,143.25,10.74]
[1728457331476,3.4915,143.27,143.24,10.74]
[1728457334485,3.4915,143.27,143.24,14.2321]
[1728457336388,10.74,143.29,143.24,14.2321]
[1728457336389,3.4913,143.28,143.25,3.4919]
[1728457343381,3.4913,143.28,143.24,10.74]
[1728457343578,3.4913,143.28,143.24,14.232]
[1728457345194,3.4913,143.28,143.24,10.74]
[1728457345488,1.3545,143.32,143.27,10.74]
[1728457345685,4.94,143.31,143.27,10.74]
[1728457346287,3.4911,143.29,143.27,10.74]
[1728457346991,3.491,143.29,143.27,10.74]
[1728457347378,3.491,143.29,143.26,3.4916]
[1728457347579,15.68,143.31,143.26,10.74]
[1728457348388,3.4911,143.29,143.26,14.2316]
[1728457351191,0.12502,143.33,143.28,10.74]
[1728457351387,0.12502,143.33,143.3,10.74]
[1728457351796,0.12502,143.33,143.31,3.4903]
[1728457353696,0.12502,143.33,143.32,14.2302]
[1728457354883,97.66139183,143.36,143.35,3.4895]
[1728457355090,97.66139183,143.36,143.35,14.2295]
[1728457357488,0.12502,143.39,143.35,14.2295]
[1728457357796,0.12502,143.39,143.38,10.74]
[1728457358183,0.12502,143.39,143.38,14.2288]
[1728457358389,0.12502,143.39,143.37,10.74]
[1728457361096,0.12502,143.39,143.34,6.3666]
[1728457361292,0.12502,143.39,143.35,10.74]
[1728457361501,3.489,143.38,143.35,10.74]
[1728457361996,0.12502,143.39,143.35,10.74]
[1728457363091,3.4889,143.38,143.35,10.74]
[1728457366591,3.4889,143.38,143.34,4.9162]
[1728457366895,0.12502,143.39,143.35,10.74]
[1728457367192,3.4891,143.37,143.35,10.74]
[1728457367407,3.4891,143.37,143.34,15.6562]
[1728457367892,10.86502,143.39,143.34,12.1666]
[1728457368099,10.86502,143.39,143.33,20.529]
[1728457368100,3.4893,143.36,143.33,20.529]
[1728457370697,3.4893,143.36,143.33,15.589]
[1728457371904,10.74,143.38,143.33,1.3591]
[1728457372107,3.4897,143.35,143.33,12.0991]
[1728457372708,10.74,143.37,143.33,1.3591]
[1728457372899,10.74,143.37,143.31,15.5575]
[1728457373505,3.4897,143.34,143.31,12.0671]
[1728457374915,4.92,143.36,143.31,15.5575]
[1728457375100,4.92,143.36,143.31,12.0671]
[1728457375101,3.4898,143.34,143.31,12.0671]
[1728457375505,15.66,143.36,143.3,3.4906]
[1728457375702,3.4901,143.33,143.31,10.74]
[1728457377109,3.4898,143.34,143.31,14.2304]
[1728457377907,3.4898,143.34,143.31,10.74]
[1728457379214,3.4898,143.34,143.3,3.4905]
[1728457379415,3.4898,143.34,143.3,14.2305]
[1728457380015,15.66,143.36,143.3,14.2305]
[1728457380216,3.49,143.33,143.3,14.2305]
[1728457380513,10.74,143.35,143.3,10.74]
[1728457381516,3.4901,143.33,143.3,10.74]
[1728457382022,3.4901,143.33,143.3,14.2307]
[1728457382316,3.4905,143.31,143.29,1.3767]
[1728457390130,3.4907,143.3,143.28,10.74]
[1728457393537,3.4906,143.31,143.28,10.74]
[1728457395841,3.4907,143.31,143.28,10.74]
[1728457396141,15.66,143.33,143.28,10.74]
[1728457396439,3.4908,143.3,143.28,10.74]
[1728457399030,3.4909,143.29,143.27,0.12502]
[1728457399544,3.4909,143.29,143.27,10.86502]
[1728457400840,3.4912,143.28,143.27,0.12502]
[1728457404745,14.2312,143.28,143.27,0.12502]
[1728457407444,10.74,143.28,143.21,2.87272]
[1728457407647,3.4924,143.23,143.21,13.61272]
[1728457407853,15.62,143.26,143.21,13.61272]
[1728457408149,3.4923,143.24,143.22,10.74]
[1728457410147,4.88,143.26,143.22,10.74]
[1728457412048,3.4923,143.24,143.21,17.10562]
[1728457412240,3.4923,143.24,143.21,15.74592]
[1728457413846,10.74,143.25,143.21,0.12502]
[1728457414743,3.4927,143.22,143.21,0.12502]
[1728457430159,4.88,143.25,143.21,10.86502]
[1728457430355,4.88,143.25,143.22,10.74]
[1728457431057,3.4922,143.24,143.22,10.74]
[1728457432264,3.4922,143.24,143.21,14.35782]
[1728457433359,3.4921,143.25,143.22,3.4926]
[1728457434158,3.4923,143.24,143.21,14.35782]
[1728457435057,15.62,143.26,143.21,0.12502]
[1728457435259,3.4926,143.23,143.21,0.12502]
[1728457435861,3.4927,143.22,143.21,0.12502]
[1728457445672,8.3727,143.22,143.21,0.12502]
[1728457450579,19.1127,143.22,143.21,0.12502]
[1728457456089,8.3727,143.22,143.21,0.12502]
[1728457456292,19.1127,143.22,143.21,0.12502]
[1728457456797,3.4935,143.19,143.16,3.4941]
[1728457456996,14.2335,143.19,143.16,3.4941]
[1728457457200,19.1135,143.19,143.16,3.4941]
[1728457460685,14.2335,143.19,143.16,3.4941]
[1728457460890,10.74,143.19,143.15,10.86502]
[1728457461085,3.4936,143.18,143.15,14.35922]
[1728457464213,3.4939,143.17,143.15,0.12502]
[1728457465406,3.4938,143.18,143.15,3.61942]
[1728457465606,14.2338,143.18,143.15,3.61942]
[1728457471100,19.1138,143.18,143.15,3.61942]
[1728457471598,19.1134,143.19,143.16,3.4941]
[1728457471801,19.1134,143.19,143.15,0.12502]
[1728457472209,19.1134,143.19,143.15,3.61922]
[1728457475518,15.62,143.19,143.15,3.61922]
[1728457475720,3.4937,143.18,143.15,3.61922]
[1728457477317,3.4937,143.18,143.15,0.12502]
[1728457480615,14.2337,143.18,143.15,0.12502]
[1728457487929,3.4937,143.18,143.15,0.12502]
[1728457488224,15.62,143.19,143.16,3.4941]
[1728457489220,19.1135,143.19,143.16,3.4941]
[1728457493533,19.0735,143.19,143.16,3.4941]
[1728457493729,4.84,143.19,143.16,3.4941]
[1728457493930,15.58,143.19,143.16,3.4941]
[1728457494944,10.74,143.19,143.16,3.4941]
[1728457498234,3.4937,143.18,143.15,3.61932]
[1728457498831,101.25762642,143.19,143.16,3.4941]
[1728457499028,102.60422642,143.19,143.16,3.4941]
[1728457500037,1.3141,143.22,143.17,3.4937]
[1728457500237,4.84,143.21,143.16,10.74]
[1728457501336,8.333,143.21,143.16,10.74]
[1728457501537,15.58,143.21,143.16,10.74]
[1728457502533,3.4933,143.2,143.16,14.234]
[1728457504038,3.4933,143.2,143.17,3.4937]
[1728457504338,19.0729,143.21,143.16,10.74]
[1728457504533,19.0729,143.21,143.17,3.4937]
[1728457505126,15.58,143.21,143.17,3.4937]
[1728457505329,3.4931,143.2,143.17,3.4937]
[1728457508036,3.4931,143.2,143.16,3.494]
[1728457508236,3.4931,143.2,143.16,14.234]
[1728457508538,3.493,143.21,143.18,3.4935]
[1728457510237,3.493,143.21,143.17,10.74]
[1728457510437,3.493,143.21,143.17,14.2338]
[1728457511338,16.8941,143.22,143.17,14.2338]
[1728457511534,10.74,143.2,143.16,10.74]
[1728457512137,3.4934,143.19,143.16,10.74]
[1728457512349,10.74,143.18,143.15,0.12502]
[1728457513234,14.2338,143.18,143.15,0.12502]
[1728457515849,14.2338,143.18,143.15,3.61932]
[1728457516043,3.4938,143.18,143.15,3.61932]
[1728457516346,8.3332,143.2,143.16,3.494]